bitfinex/quotes_ETHUSD_20250425
["timestamp","ask_amount","ask_price","bid_price","bid_amount"]
[1745584931880,0.14859337,1791.2,1790.7,0.90179618]
[1745584932062,0.55730734,1791.2,1790.7,0.90179618]
[1745584932388,1.09050119,1791.2,1790.7,0.90179618]
[1745584932621,1.09050119,1791.2,1790.6,5.9267]
[1745584932622,0.14859337,1791.2,1790.6,11.51122137]
[1745584934113,0.14859337,1791.2,1790.7,5.58439924]
[1745584934424,0.14859337,1791.2,1790.7,6.48600563]
[1745584935375,0.14859337,1791.2,1790.7,6.48607686]
[1745584935608,0.14859337,1791.2,1790.7,0.90179618]
[1745584935812,0.14859337,1791.2,1790.7,2.14310064]
[1745584936011,0.56640969,1791.2,1790.7,2.14310064]
[1745584936218,0.56640969,1791.2,1790.7,7.72733707]
[1745584936519,0.56640969,1791.2,1790.7,2.14310064]
[1745584936675,3.56640969,1791.2,1790.7,0.90179618]
[1745584938090,3.56640969,1791.2,1790.6,6.82849618]
[1745584938275,3.56640969,1791.2,1790.6,12.41310277]
[1745584938710,3.56640969,1791.2,1790.6,17.99763386]
[1745584939009,3.56640969,1791.2,1790.7,5.58439864]
[1745584939216,3.56640969,1791.2,1790.6,12.41301283]
[1745584939417,3.56640969,1791.2,1790.6,13.65431411]
[1745584939579,3.56640969,1791.2,1790.6,13.65429964]
[1745584940798,0.56640969,1791.2,1790.7,5.58417626]
[1745584941185,0.56640969,1791.2,1790.6,13.65437863]
[1745584941609,0.56640969,1791.2,1790.6,13.65430638]
[1745584941813,0.56640969,1791.2,1790.6,19.23888633]
[1745584942001,0.56640969,1791.2,1790.6,19.23881517]
[1745584942222,0.14859337,1791.2,1791.0,0.90179618]
[1745584942387,0.14859337,1791.2,1791.0,6.4850901]
[1745584943326,0.14859337,1791.2,1791.0,0.90179618]
[1745584943790,0.14859337,1791.2,1791.0,6.48517941]
[1745584944690,3.0,1791.5,1791.0,6.48517941]
[1745584944889,0.14676643,1791.1,1791.0,7.77156708]
[1745584945085,3.0,1791.5,1791.0,7.77156708]
[1745584945527,0.14750861,1791.4,1791.0,7.77156708]
[1745584946024,0.14750861,1791.4,1791.1,5.58308565]
[1745584946526,0.14750861,1791.4,1791.0,7.77145703]
[1745584946726,0.41113332,1791.6,1791.1,0.7771457]
[1745584947332,0.14834634,1791.5,1791.3,5.58251626]
[1745584947831,0.14809906,1791.4,1791.2,6.37787396]
[1745584948190,3.33282195,1791.8,1791.2,6.37787396]
[1745584948386,0.1488408,1791.7,1791.3,5.58250398]
[1745584948614,0.1488408,1791.7,1791.2,6.37784729]
[1745584948842,0.1488408,1791.7,1791.2,7.65164389]
[1745584949801,0.1488408,1791.7,1791.2,13.23427262]
[1745584950426,0.1488408,1791.7,1791.3,5.58243622]
[1745584950633,0.1488408,1791.7,1791.2,7.65162533]
[1745584950928,0.1488408,1791.7,1791.2,13.23425889]
[1745584951092,0.1488408,1791.7,1791.3,5.58252137]
[1745584951293,0.1488408,1791.7,1791.2,7.65162533]
[1745584951494,0.1488408,1791.7,1791.3,6.34758222]
[1745584952135,0.1488408,1791.7,1791.4,5.58209752]
[1745584952357,0.1488408,1791.7,1791.5,11.96638097]
[1745584952497,0.1488408,1791.7,1791.5,0.8029]
[1745584952832,0.11885731,1791.6,1791.4,6.36663373]
[1745584953133,0.11885731,1791.6,1791.4,2.56531607]
[1745584953303,3.0,1792.1,1791.4,6.366656]
[1745584953511,3.42175618,1792.1,1791.4,6.366656]
[1745584953703,0.11989271,1792.0,1791.4,6.366656]
[1745584954296,0.11989271,1792.0,1791.4,11.94868874]
[1745584954494,0.11989271,1792.0,1791.5,0.7531]
[1745584954732,0.11989271,1792.0,1791.6,5.58160303]
[1745584954944,5.42021953,1792.2,1791.6,5.58140186]
[1745584955098,0.11070976,1791.9,1791.6,5.58140186]
[1745584955305,3.54202195,1792.1,1791.6,11.1628004]
[1745584955536,0.11046261,1791.8,1791.6,5.5813947]
[1745584955728,3.54202195,1792.1,1791.6,5.5813947]
[1745584955928,0.11021543,1791.7,1791.6,5.5813947]
[1745584956124,5.092,1792.2,1791.6,6.77301909]
[1745584956330,0.11021543,1791.7,1791.6,5.5813947]
[1745584956516,5.092,1792.2,1791.6,5.5813947]
[1745584957036,3.11120398,1792.1,1791.6,5.5813947]
[1745584957939,3.11120398,1792.1,1791.7,5.5812854]
[1745584958814,3.11120398,1792.1,1791.6,5.5813947]
[1745584959140,3.97235178,1792.1,1791.6,5.5813947]
[1745584959519,3.97235178,1792.1,1791.7,5.58113299]
[1745584961913,3.97235178,1792.1,1791.6,5.58141887]
[1745584962113,3.97235178,1792.1,1791.6,5.58141122]
[1745584962347,3.97235178,1792.1,1791.5,6.33480709]
[1745584962524,0.39723518,1792.0,1791.4,5.58205404]
[1745584963050,0.11106,1791.9,1791.4,5.58205404]
[1745584964115,0.11106,1791.9,1791.3,11.42926958]
[1745584964320,0.11106,1791.9,1791.4,5.58219505]
[1745584964833,0.11106,1791.9,1791.3,11.4292553]
[1745584965054,0.71992816,1791.9,1791.3,11.4292553]
[1745584965266,0.11106,1791.9,1791.4,5.58218739]
[1745584967016,0.11106,1791.9,1791.3,11.42925137]
[1745584967560,0.11106,1791.9,1791.4,5.58221238]
[1745584968337,0.11106,1791.9,1791.3,5.8469]
[1745584968537,0.11106,1791.9,1791.4,5.58220389]
[1745584968762,0.11106,1791.9,1791.3,11.42924878]
[1745584969669,0.11106,1791.9,1791.4,5.58218621]
[1745584971499,0.11106,1791.9,1791.4,5.58201342]
[1745584973164,0.11106,1791.9,1791.3,11.42921534]
[1745584973359,0.11106,1791.9,1791.3,12.66231649]
[1745584973905,0.11106,1791.9,1791.3,18.24463287]
[1745584974176,0.11106,1791.9,1791.4,5.58208852]
[1745584974579,0.11106,1791.9,1791.4,5.58202588]
[1745584976157,0.11106,1791.9,1791.5,5.5819032]
[1745584976358,0.11106,1791.9,1791.4,5.582021]
[1745584976793,0.11106,1791.9,1791.4,11.16410338]
[1745584977110,0.11106,1791.9,1791.5,5.58176884]
[1745584977465,0.11106,1791.9,1791.5,11.16348698]
[1745584977896,0.11106,1791.9,1791.5,5.58171814]
[1745584978102,0.11106,1791.9,1791.5,11.16343501]
[1745584978260,0.11106,1791.9,1791.5,5.58171687]
[1745584978756,0.11106,1791.9,1791.8,5.58098002]
[1745584978998,0.32821953,1792.3,1791.8,5.58098002]
[1745584979368,0.11254542,1792.2,1791.8,5.58098002]
[1745584979683,0.40881608,1792.3,1791.9,6.36527095]
[1745584979890,0.11229837,1792.1,1792.0,5.58026929]
[1745584980082,0.40881608,1792.3,1792.0,1.19455402]
[1745584980280,0.11294928,1792.1,1791.9,11.94560956]
[1745584980488,3.0,1792.5,1791.9,6.365148]
[1745584981012,0.11369034,1792.4,1791.9,0.7847]
[1745584981308,0.11369034,1792.4,1792.0,6.48215332]
[1745584981460,0.11369034,1792.4,1792.3,5.57942308]
[1745584981657,0.4183277,1792.6,1792.3,5.57942308]
[1745584981863,0.10810668,1792.4,1792.3,5.57942308]
[1745584982099,0.4183277,1792.6,1792.3,6.77801596]
[1745584982402,0.4183277,1792.6,1792.3,1.19859288]
[1745584982696,0.10835364,1792.5,1792.3,1.19859288]
[1745584983560,0.10835364,1792.5,1792.3,6.77799224]
[1745584983812,0.10835364,1792.5,1792.3,1.19859288]
[1745584984016,0.10835364,1792.5,1792.2,6.40642365]
[1745584984363,0.10835364,1792.5,1792.2,6.40641662]
[1745584984710,0.10835364,1792.5,1792.2,6.40640596]
[1745584985606,0.10835364,1792.5,1792.2,6.40655544]
[1745584985808,0.10835364,1792.5,1792.2,11.9860884]
[1745584985996,0.10835364,1792.5,1792.2,8.1135418]
[1745584986467,0.10835364,1792.5,1792.2,3.43580502]
[1745584986672,0.10835364,1792.5,1792.4,6.48090798]
[1745584986896,0.4183277,1792.6,1792.5,5.57880055]
[1745584987405,0.4183277,1792.6,1792.5,6.36860055]
[1745584992370,0.4183277,1792.6,1792.5,11.45260055]
[1745584995548,0.4183277,1792.6,1792.5,10.66280055]
[1745584995862,0.4183277,1792.6,1792.5,11.6613563]
[1745584996408,0.4183277,1792.6,1792.5,6.08255575]
[1745584996685,0.4183277,1792.6,1792.5,5.084]
[1745584997186,0.4183277,1792.6,1792.5,10.66280055]
[1745584997388,0.4183277,1792.6,1792.5,5.084]
[1745584997586,0.4183277,1792.6,1792.5,10.66280055]
[1745584998083,0.4183277,1792.6,1792.5,5.084]
[1745584999587,0.4183277,1792.6,1792.5,10.66280055]
[1745584999788,0.52244073,1792.6,1792.5,5.084]
[1745584999962,0.52244073,1792.6,1792.5,10.66280055]
[1745585000901,0.52244073,1792.6,1792.5,13.06086991]
[1745585001300,0.4183277,1792.6,1792.5,13.06086991]
[1745585002099,0.4183277,1792.6,1792.5,7.48206936]
[1745585002303,0.4183277,1792.6,1792.5,6.70816936]
[1745585002522,0.5224874,1792.6,1792.5,5.084]
[1745585003017,0.5224874,1792.6,1792.2,5.57954585]
[1745585003166,0.5224874,1792.6,1792.2,5.077]
[1745585003365,0.4183277,1792.6,1792.2,10.65657237]
[1745585003566,0.5224874,1792.6,1792.2,10.65657237]
[1745585003769,0.5224874,1792.6,1792.2,5.077]
[1745585004366,3.5224874,1792.6,1792.0,6.4819771]
[1745585004567,0.35224874,1792.5,1792.0,10.65718092]
[1745585005081,0.4183277,1792.6,1792.0,10.65714149]
[1745585006474,0.4183277,1792.6,1792.0,16.2373139]
[1745585006675,3.4183277,1792.6,1792.0,10.65714249]
[1745585007382,3.4183277,1792.6,1792.0,16.23728277]
[1745585007578,3.4183277,1792.6,1792.0,10.65713136]
[1745585007812,0.34183277,1792.5,1792.0,5.077]
[1745585008552,0.34183277,1792.5,1791.9,5.077]
[1745585008753,0.34183277,1792.5,1791.8,5.58079667]
[1745585008904,6.82254409,1792.5,1791.8,10.65779667]
[1745585009436,1.24362895,1792.5,1791.8,10.65777756]
[1745585009640,1.24362895,1792.5,1791.8,17.94284646]
[1745585009943,1.24362895,1792.5,1791.8,12.3620689]
[1745585010235,7.15065305,1792.5,1791.8,5.077]
[1745585010644,8.57913923,1792.4,1791.8,5.077]
[1745585011051,6.48145371,1792.3,1791.6,16.748]
[1745585011351,3.0,1792.2,1791.6,21.825]
[1745585012137,4.23001571,1792.3,1791.6,27.40639734]
[1745585012316,0.42300157,1792.2,1791.6,27.40639734]
[1745585013113,3.0,1792.1,1791.6,21.825]
[1745585013318,3.0,1792.1,1791.6,5.077]
[1745585013542,8.58010512,1792.1,1791.6,5.077]
[1745585013742,6.48258194,1791.9,1791.2,5.58264304]
[1745585013965,0.64825819,1791.8,1791.2,10.66064304]
[1745585014148,0.64825819,1791.8,1791.2,10.6606315]
[1745585014317,0.41555733,1791.8,1791.5,5.58189163]
[1745585014517,3.0,1792.0,1791.5,5.58189163]
[1745585015259,3.0,1792.0,1791.4,0.7827]
[1745585015460,3.0,1792.0,1791.3,5.58234348]
[1745585016024,3.0,1792.0,1791.4,5.58221886]
[1745585016239,0.3,1791.9,1791.3,5.58234348]
[1745585016441,0.3,1791.9,1791.4,5.58219552]
[1745585016642,0.3,1791.9,1791.3,11.16466807]
[1745585017471,0.3,1791.9,1791.2,11.4638292]
[1745585017769,6.29278127,1791.9,1791.2,10.6607292]
[1745585017925,0.62927813,1791.8,1791.2,10.6607292]
[1745585018120,3.62927813,1791.8,1791.2,10.6607292]
[1745585018466,10.44043107,1791.8,1791.1,5.078]
[1745585018674,3.0,1791.5,1791.1,5.078]
[1745585019836,0.90179618,1791.6,1791.1,5.078]
[1745585020049,3.0,1791.5,1791.1,5.078]
[1745585020287,0.3,1791.4,1791.1,5.078]
[1745585020458,0.3,1791.4,1790.8,10.6629679]
[1745585020852,0.3,1791.4,1790.8,10.66305731]
[1745585022147,15.80777816,1791.6,1790.8,10.66305731]
[1745585022570,10.2258791,1791.6,1790.8,11.16802784]
[1745585022770,10.2258791,1791.6,1790.8,5.58397053]
[1745585022974,0.90179618,1791.4,1790.8,5.58397053]
[1745585024494,0.90179618,1791.4,1790.8,5.58390337]
[1745585025359,3.90179618,1791.4,1790.8,5.58390337]
[1745585025559,0.39017962,1791.3,1790.8,5.58390337]
[1745585025782,0.90179618,1791.2,1790.8,5.58387898]
[1745585027797,0.90179618,1791.2,1790.7,11.46243624]
[1745585027970,0.90179618,1791.2,1790.7,17.04661715]
[1745585028296,0.90179618,1791.2,1790.7,11.46238091]
[1745585028458,0.90179618,1791.2,1790.7,5.079]
[1745585028793,1.2919758,1791.2,1790.7,10.66329695]
[1745585029002,0.90179618,1791.2,1790.7,10.66329695]
[1745585029399,0.90179618,1791.2,1790.8,5.58406073]
[1745585030100,3.32821953,1791.4,1790.8,0.776]
[1745585030101,1.23001571,1791.4,1790.8,0.776]
[1745585030304,1.23001571,1791.4,1791.0,5.58329441]
[1745585030511,1.23001571,1791.4,1790.9,5.58366459]
[1745585030673,1.23001571,1791.4,1790.9,12.36164313]
[1745585030867,1.23001571,1791.4,1790.8,0.776]
[1745585030868,1.23001571,1791.4,1790.8,6.35987603]
[1745585031172,0.90179618,1791.2,1790.8,11.94376911]
[1745585031372,0.90179618,1791.2,1790.9,5.58377327]
[1745585033104,0.90179618,1791.2,1790.8,6.35991704]
[1745585033406,0.90179618,1791.2,1790.8,6.35995787]
[1745585033566,0.90179618,1791.2,1790.8,5.58395787]
[1745585033762,0.90179618,1791.2,1790.8,5.58388364]
[1745585033977,0.90179618,1791.2,1790.8,11.16776728]
[1745585034196,0.90179618,1791.2,1790.9,5.58369963]
[1745585034503,1.23001571,1791.4,1791.0,5.58337889]
[1745585034706,1.23001571,1791.4,1791.1,5.58306543]
[1745585034907,0.90179618,1791.5,1791.1,5.58312137]
[1745585035411,0.90179618,1791.5,1791.0,5.58323313]
[1745585035583,1.36620319,1791.5,1791.0,5.58323313]
[1745585035784,0.90179618,1791.3,1790.9,5.58364114]
[1745585036176,0.90179618,1791.3,1790.9,5.58361348]
[1745585036371,0.90179618,1791.3,1791.0,5.58346572]
[1745585036973,0.90179618,1791.3,1790.9,11.16715794]
[1745585037281,0.90179618,1791.3,1790.9,6.87037396]
[1745585038126,0.90179618,1791.1,1790.9,6.87042533]
[1745585038816,0.90179618,1791.1,1790.9,6.87038292]
[1745585039037,0.90179618,1791.1,1790.9,1.28681547]
[1745585039180,0.90179618,1791.1,1790.8,7.28487115]
[1745585040113,0.90179618,1791.3,1790.9,5.58355134]
[1745585040592,0.90179618,1791.3,1791.0,5.58335843]
[1745585040792,0.90179618,1791.3,1790.9,6.39557868]
[1745585043185,0.90179618,1791.4,1790.9,5.58359787]
[1745585043685,0.90179618,1791.2,1790.9,5.58359787]
[1745585043884,0.90179618,1791.2,1790.9,5.58359748]
[1745585044085,0.90179618,1791.2,1791.0,5.58339732]
[1745585045120,0.90179618,1791.2,1790.9,5.58359748]
[1745585045335,0.90179618,1791.2,1791.0,0.55835975]
[1745585045544,0.90179618,1791.2,1790.7,11.4940026]
[1745585045742,0.90179618,1791.2,1790.7,17.07818669]
[1745585046036,0.90179618,1791.2,1790.8,5.58398522]
[1745585047123,0.90179618,1791.2,1790.7,11.49388409]
[1745585047837,0.90179618,1791.0,1790.7,5.079]
[1745585048198,0.90179618,1791.0,1790.7,10.66319524]
[1745585049240,1.32153619,1791.0,1790.7,10.66319524]
[1745585049532,1.32153619,1791.0,1790.7,12.28797406]
[1745585049705,0.41974001,1791.0,1790.7,12.28797406]
[1745585049907,1.23001571,1791.2,1790.7,12.28797406]
[1745585050604,1.23001571,1791.2,1790.7,12.2881314]
[1745585052032,1.23001571,1791.2,1790.7,6.70377882]
[1745585052549,1.23001571,1791.2,1790.8,0.8214]
[1745585054347,0.90179618,1791.0,1790.7,5.079]
[1745585054506,0.90179618,1791.0,1790.7,10.66339718]
[1745585054705,0.90179618,1791.0,1790.7,12.36740666]
[1745585055346,0.90179618,1791.0,1790.7,6.78300948]
[1745585056451,0.90179618,1791.0,1790.7,5.079]
[1745585056624,0.75594368,1791.2,1790.8,0.7505]
[1745585056948,0.75594368,1791.2,1790.9,5.58369119]
[1745585057113,0.75594368,1791.2,1790.8,11.91830001]
[1745585057313,0.75594368,1791.2,1790.8,0.7505]
[1745585057646,0.90179618,1791.1,1790.8,0.7505]
[1745585058026,0.90179618,1791.1,1790.7,5.079]
[1745585058352,0.90179618,1790.9,1790.4,0.8286]
[1745585058534,0.90179618,1790.7,1790.4,0.8286]
[1745585058736,1.33060933,1790.7,1790.4,0.8286]
[1745585059058,1.65882886,1790.7,1790.2,17.5756]
[1745585059360,1.65882886,1790.7,1790.2,25.98944536]
[1745585059537,1.65882886,1790.7,1790.2,20.40366706]
[1745585059869,1.65882886,1790.7,1790.2,23.16144797]
[1745585060159,1.65882886,1790.7,1790.2,17.5756]
[1745585061381,0.90179618,1790.5,1790.2,17.5756]
[1745585061565,0.90179618,1790.3,1790.2,21.816]
[1745585061886,0.90179618,1790.3,1790.2,5.069]
[1745585062346,0.90179618,1790.5,1790.2,5.069]
[1745585066749,0.90179618,1790.5,1790.2,5.069]
[1745585068900,0.90179618,1790.3,1790.2,5.069]
[1745585069075,0.90179618,1790.3,1790.1,0.05]
[1745585072673,1.23001571,1790.5,1790.1,0.8439]
[1745585072871,0.32821953,1790.5,1790.1,0.8439]
[1745585073288,0.32821953,1790.5,1790.1,1.48693066]
[1745585073691,0.32821953,1790.5,1790.1,7.07300841]
[1745585074292,0.32821953,1790.5,1790.1,12.65908266]
[1745585074458,0.32821953,1790.5,1790.2,6.40462182]
[1745585075397,0.32821953,1790.5,1790.4,0.7962]
[1745585075599,0.42881315,1790.7,1790.4,1.4343779]
[1745585075798,1.23001571,1790.8,1790.4,7.01968226]
[1745585076201,0.90179618,1790.8,1790.4,7.01968226]
[1745585076703,0.90179618,1790.9,1790.6,0.8123]
[1745585077373,0.90179618,1790.9,1790.6,6.39692724]
[1745585077578,0.90179618,1790.9,1790.6,7.59510371]
[1745585077804,0.90179618,1790.9,1790.6,2.01047647]
[1745585078705,0.90179618,1790.9,1790.6,7.5949719]
[1745585079618,0.90179618,1790.9,1790.6,2.01047647]
[1745585083068,0.90179618,1790.9,1790.6,7.59507453]
[1745585083490,0.90179618,1790.9,1790.7,0.75950745]
[1745585084205,0.90179618,1790.9,1790.6,7.59517681]
[1745585086982,0.90179618,1790.9,1790.7,5.58428281]
[1745585087184,0.90179618,1790.9,1790.6,7.59517681]
[1745585088270,1.23001571,1791.1,1790.8,0.7872]
[1745585088470,0.90179618,1790.9,1790.8,0.7872]
[1745585089201,0.90179618,1790.9,1790.6,1.95677647]
[1745585089399,0.32821953,1791.1,1790.6,1.95677647]
[1745585089400,0.90179618,1790.7,1790.6,1.95677647]
[1745585092002,0.90179618,1790.7,1790.6,0.7586]
[1745585094184,1.32464521,1790.7,1790.6,0.7586]
[1745585094809,1.32464521,1790.7,1790.6,6.3433202]
[1745585095112,0.32821953,1791.1,1790.7,5.58436685]
[1745585095267,1.23001571,1791.1,1790.8,0.8243]
[1745585095473,0.32821953,1791.1,1790.8,6.40824564]
[1745585095674,0.32821953,1791.1,1790.9,0.64082456]
[1745585095971,0.32821953,1791.1,1790.8,0.8243]
[1745585096168,0.90179618,1791.0,1790.8,0.8243]
[1745585096698,0.90179618,1791.0,1790.6,0.8295]
[1745585099080,0.90179618,1791.0,1790.6,6.41417859]
[1745585099478,0.90179618,1791.0,1790.6,0.8295]
[1745585099691,0.90179618,1791.0,1790.6,1.97733218]
[1745585101180,0.90179618,1790.8,1790.6,1.97733218]
[1745585102192,0.90179618,1790.8,1790.5,5.064]
[1745585103218,0.90179618,1790.8,1790.6,3.0]
[1745585103597,0.75594368,1791.2,1790.6,3.0]
[1745585103798,0.90179618,1790.9,1790.6,3.0]
[1745585105214,0.90179618,1790.7,1790.6,3.0]
[1745585105584,0.90179618,1791.0,1790.7,6.35514795]
[1745585105786,1.65773986,1791.2,1790.8,3.0]
[1745585106024,0.75594368,1791.2,1791.1,0.90179618]
[1745585106317,0.42772415,1791.2,1791.1,0.90179618]
[1745585106493,0.32821953,1791.6,1791.1,0.90179618]
[1745585106693,0.66104148,1791.6,1791.1,0.90179618]
[1745585107683,3.0,1791.5,1791.1,0.90179618]
[1745585109095,0.66104148,1791.6,1791.1,0.90179618]
[1745585110388,1.08445085,1791.6,1791.1,0.90179618]
[1745585111428,0.32821953,1791.5,1791.1,0.90179618]
[1745585111926,8.91013561,1791.5,1791.1,0.90179618]
[1745585112085,0.89101356,1791.4,1791.1,0.90179618]
[1745585112823,6.47337635,1791.4,1790.9,0.90179618]
[1745585113402,6.47337635,1791.4,1790.7,6.71609618]
[1745585113716,0.32821953,1791.3,1790.7,5.96479618]
[1745585114512,3.0,1790.9,1790.4,0.90179618]
[1745585114692,0.32821953,1790.8,1790.4,0.90179618]
[1745585116013,1.23001571,1790.8,1790.3,5.8462]
[1745585116329,1.23001571,1790.8,1790.4,0.802]
[1745585117000,0.32821953,1790.8,1790.4,0.802]
[1745585119531,0.90179618,1790.7,1790.3,5.063]
[1745585119693,0.90179618,1790.7,1790.3,5.6454]
[1745585120483,0.32821953,1790.8,1790.4,0.7696]
[1745585120643,0.75147112,1790.8,1790.4,0.7696]
[1745585121847,0.90179618,1790.5,1790.4,0.7696]
[1745585130249,1.32323108,1790.5,1790.4,0.7696]
[1745585130446,1.32323108,1790.5,1790.4,1.4111]
[1745585130650,1.32323108,1790.5,1790.1,0.05]
[1745585130945,0.90179618,1790.2,1790.1,0.05]
[1745585133678,1.32390129,1790.2,1790.1,0.05]
[1745585137687,2.553917,1790.2,1789.9,5.058]
[1745585137840,0.90179618,1790.0,1789.9,5.058]
[1745585138160,0.90179618,1790.0,1789.7,0.7508]
[1745585138354,0.90179618,1789.8,1789.7,1.33264827]
[1745585140178,0.90179618,1789.8,1789.7,0.7508]
[1745585141088,1.31733615,1789.8,1789.7,0.7508]
[1745585141261,1.3086535,1789.8,1789.7,0.7508]
[1745585147367,1.3086535,1789.8,1789.7,1.334356]
[1745585148892,1.31733615,1789.8,1789.7,1.334356]
[1745585149410,1.31733615,1789.8,1789.7,0.583556]
[1745585149978,0.41553997,1789.8,1789.7,0.583556]
[1745585150180,0.90179618,1789.9,1789.7,0.583556]
[1745585150376,1.80359236,1789.9,1789.7,0.583556]
[1745585150577,2.21349391,1789.9,1789.7,0.583556]
[1745585150790,3.0,1789.8,1789.7,0.583556]
[1745585151106,3.55417134,1789.8,1789.7,0.583556]
[1745585153801,0.55417134,1789.8,1789.7,0.583556]
[1745585154004,3.0,1789.8,1789.7,0.583556]
[1745585154870,0.90179618,1789.4,1789.3,5.054]
[1745585155076,0.90179618,1789.4,1789.1,0.05]
[1745585156381,0.90179618,1789.2,1789.1,0.05]
[1745585158226,1.31629235,1789.2,1789.1,0.05]
[1745585160651,0.41449617,1789.2,1789.1,0.05]
[1745585160794,0.90179618,1789.4,1789.1,0.05]
[1745585160994,0.90179618,1789.4,1789.2,0.7855]
[1745585161507,1.31319034,1789.4,1789.2,0.7855]
[1745585165096,0.90179618,1789.6,1789.3,5.055]
[1745585165300,0.90179618,1789.6,1789.4,0.7643]
[1745585165501,0.90179618,1789.6,1789.4,1.34623]
[1745585166836,3.0,1789.4,1789.1,0.05]
[1745585167051,0.90179618,1789.2,1789.1,0.05]
[1745585167342,0.90179618,1789.3,1789.1,0.05]
[1745585171461,3.90179618,1789.2,1789.1,0.05]
[1745585171737,5.26926756,1789.2,1789.1,0.05]
[1745585171902,4.23001571,1789.2,1788.5,0.7997]
[1745585172103,0.90179618,1788.6,1788.5,0.7997]
[1745585173059,1.31433831,1788.6,1788.5,0.7997]
[1745585174042,0.41254213,1788.6,1788.5,0.7997]
[1745585174227,0.90179618,1788.8,1788.5,0.7997]
[1745585174434,0.90179618,1788.8,1788.5,1.38517]
[1745585175750,0.90179618,1788.8,1788.5,6.97644186]
[1745585175950,0.90179618,1788.8,1788.5,1.38517]
[1745585176899,0.41920753,1788.9,1788.8,0.8046]
[1745585177066,0.90179618,1789.0,1788.8,5.8606]
[1745585177691,0.90179618,1789.0,1788.8,6.44666]
[1745585179797,1.32655311,1789.0,1788.8,5.8606]
[1745585180695,1.32655311,1789.0,1788.8,5.056]
[1745585183314,1.32655311,1789.0,1788.2,5.5920862]
[1745585183481,0.90179618,1788.6,1788.4,5.05]
[1745585187190,0.90179618,1788.8,1788.5,0.7503]
[1745585187517,0.90179618,1788.8,1788.5,1.88948745]
[1745585189591,0.90179618,1789.0,1788.5,1.88948745]
[1745585189810,1.31158847,1789.0,1788.6,0.8222]
[1745585190008,1.31158847,1789.0,1788.6,6.41307179]
[1745585190214,1.31158847,1789.0,1788.6,12.00382872]
[1745585190375,1.31158847,1789.0,1788.7,1.20038287]
[1745585190982,0.90179618,1788.8,1788.6,0.8222]
[1745585191406,0.90179618,1788.8,1788.6,6.41314976]
[1745585191609,0.90179618,1788.8,1788.6,0.8222]
[1745585192194,1.31158847,1789.0,1788.7,5.59056082]
[1745585192409,0.90179618,1789.0,1788.7,5.59056082]
[1745585192614,0.90179618,1789.0,1788.8,0.55905608]
[1745585193124,0.42543258,1789.1,1788.9,0.7919]
[1745585193328,0.90179618,1789.2,1788.9,0.7919]
[1745585195480,0.25706523,1789.0,1788.9,0.7919]
[1745585195726,0.25706523,1789.0,1788.9,1.43209561]
[1745585195959,0.25706523,1789.0,1788.9,0.64019561]
[1745585196769,0.90179618,1789.2,1788.9,0.64019561]
[1745585197062,0.90179618,1789.2,1789.0,0.8275]
[1745585197643,0.90179618,1789.2,1788.9,1.46769561]
[1745585198361,0.90179618,1789.0,1788.9,1.46769561]
[1745585198964,0.90179618,1789.0,1788.9,0.64019561]
[1745585199266,0.90179618,1789.0,1788.8,5.051]
[1745585201464,0.90179618,1789.2,1788.9,6.36736436]
[1745585202266,0.90179618,1789.3,1788.9,0.7776]
[1745585202429,0.90179618,1789.3,1789.2,0.8218]
[1745585202630,0.90179618,1789.5,1789.2,12.10188552]
[1745585202829,0.90179618,1789.5,1789.3,5.58864897]
[1745585203030,0.90179618,1789.5,1789.2,12.10188552]
[1745585204934,0.90179618,1789.5,1789.4,5.5884654]
[1745585205275,0.90179618,1789.5,1789.3,0.8032]
[1745585205432,0.90179618,1789.5,1789.3,6.39193244]
[1745585205633,0.90179618,1789.5,1789.4,0.63919324]
[1745585206032,0.90179618,1789.7,1789.4,6.22765864]
[1745585206728,0.90179618,1789.7,1789.4,6.22750885]
[1745585206935,0.90179618,1789.7,1789.6,0.8156]
[1745585208031,0.42129085,1789.8,1789.7,5.58752863]
[1745585208235,0.90179618,1790.1,1789.7,1.70408327]
[1745585208583,0.90179618,1789.9,1789.7,1.70408327]
[1745585209502,0.90179618,1789.9,1789.7,7.2915313]
[1745585209782,0.90179618,1789.9,1789.7,1.70408327]
[1745585210395,0.90179618,1790.0,1789.7,1.70408327]
[1745585210670,0.32821953,1790.4,1789.7,1.70408327]
[1745585210671,0.90179618,1790.3,1790.0,5.58649723]
[1745585210868,0.90179618,1790.3,1790.1,5.044]
[1745585211227,0.90179618,1790.3,1790.2,0.8166]
[1745585212060,0.90179618,1790.3,1790.1,5.044]
[1745585214643,0.90179618,1790.3,1790.1,5.044]
[1745585215290,0.90179618,1790.3,1790.1,5.63057]
[1745585215472,0.90179618,1790.3,1790.1,11.216678]
[1745585216279,0.90179618,1790.3,1790.1,5.63057]
[1745585218720,0.90179618,1790.3,1790.1,5.044]
[1745585218867,0.90179618,1790.3,1789.9,5.043]
[1745585219072,0.90179618,1790.0,1789.9,5.043]
[1745585220794,0.90179618,1790.0,1789.6,0.7572]
[1745585220970,0.90179618,1789.8,1789.7,5.042]
[1745585221170,0.90179618,1789.8,1789.7,5.62192]
[1745585221996,0.90179618,1790.2,1789.9,5.58671709]
[1745585222167,0.90179618,1790.2,1789.8,0.8228]
[1745585222368,0.90179618,1790.2,1789.8,6.40986656]
[1745585222571,0.90179618,1790.2,1789.9,5.58688501]
[1745585222889,0.90179618,1790.2,1790.0,0.5586885]
[1745585223298,0.90179618,1790.2,1789.9,5.58689297]
[1745585223681,0.73792739,1790.5,1789.9,5.58689297]
[1745585224013,0.90179618,1790.2,1789.9,5.58673365]
[1745585225185,0.90179618,1790.2,1789.8,6.40985237]
[1745585225371,0.90179618,1790.2,1789.9,5.58687115]
[1745585225570,0.90179618,1790.2,1790.0,0.55868712]
[1745585225771,0.90179618,1790.2,1790.1,0.764]
[1745585226508,0.90179618,1790.2,1789.8,6.41891259]
[1745585226690,0.90179618,1790.2,1789.8,12.00591874]
[1745585226868,0.90179618,1790.2,1789.8,6.41870615]
[1745585227063,0.90179618,1790.2,1789.9,6.2285389]
[1745585227503,0.90179618,1790.2,1789.9,0.64187062]
[1745585228011,0.73792739,1790.5,1789.7,5.62192]
[1745585228012,0.90179618,1790.0,1789.7,5.62192]
[1745585228195,0.90179618,1789.8,1789.7,5.62192]
[1745585233816,0.90179618,1790.2,1789.8,6.35997579]
[1745585234017,0.90179618,1790.2,1789.8,11.94702568]
[1745585234223,0.90179618,1790.2,1789.9,1.19470257]
[1745585234551,0.90179618,1790.2,1789.8,0.7729]
[1745585234740,0.90179618,1790.0,1789.8,0.7729]
[1745585235919,0.90179618,1790.1,1789.8,6.36010457]